Cogmind - Beta 11.1 @@@ ROGUE MODE // 2022.05.11 @ 21:31:44 Player: Runia Result: Destroyed by as-09916 with Assembled Focal Cannon Performance ------------- Evolutions (4) 2000 Regions Visited (17) 3400 Robots Destroyed (257) 1285 Value Destroyed (7401) 7401 Prototype IDs (39) 780 Alien Tech Used (0) 0 Bonus (1783) 1783 TOTAL SCORE: 16649 Bonus ------- High Alert Combat Kills 524 Follower Combat Kills 456 Met Data Miner 300 Destroyed Z-Imprinter 1000 Triggered Deep Caves Wall 500 Exposed GOLEM Chamber 500 Friendly Fire -1497 Cogmind --------- Core Integrity 0/850 Matter 80/300 Energy 97/100 System Corruption 2% Temperature Cool (12) Movement Hovering (48) Location -6/Deep Caves Parts ------- > --- POWER (2) -------- Zionite Light DM Reactor > --- PROPULSION (6) --- Zionite Glidesys I Zionite Glidesys I Zionite Glidesys I Zionite Glidesys I > --- UTILITY (4) ------ Zionite Weapon Casing > --- WEAPON (3) ------- (None) > --- INVENTORY (5) ---- Advanced Weapon Cycler Splice Drone Bay (6/6) Gauss Cannon Heavy Missile Launcher Peak State ------------ > --- POWER ------------ Zionite Light DM Reactor Zionite Light DM Reactor > --- PROPULSION ------- Carbon-fiber Leg Improved Titanium Leg Makeshift Leg Makeshift Leg Makeshift Leg Zionite Composite Leg I > --- UTILITY ---------- Huge Storage Unit Zionite Weapon Casing Zionite Heavy Carapace > --- WEAPON ----------- RU-N14's Throwing Claymores RU-N14's Throwing Claymores RU-N14's Throwing Claymores > --- INVENTORY -------- Advanced Energy Well Zionite Biocell Matter Compressor Triangulator Advanced Terrain Scanner Advanced Weapon Cycler Zionite Weapon Casing Zionite Light Carapace Layered Medium Armor Plating Graphene Brace Splice Drone Bay AS-neutralizer No. 17b Proton Cannon Neutron Cannon Gauss Cannon Mini Assault Cannon Improved Proton Missile Launcher Heavy Missile Launcher Rocket Array RU-N14's Throwing Claymores Power Maul CR-A16's Pointy Stick [Rating: 93] Favorites ----------- Power Improved Deuterium Engine Engine Improved Deuterium Engine Power Core Reinforced Fission Core Reactor Zionite Light DM Reactor Propulsion Light Treads Treads Light Treads Leg Flexi-carbon Leg Wheel Armored Wheel Hover Unit Zionite Glidesys I Utility Huge Storage Unit Device Experimental Heat Sink Storage Huge Storage Unit Processor Advanced Visual Processing Unit Protection Light Armor Plating Weapon Improved Assault Rifle Energy Gun Small Laser Energy Cannon Neutron Cannon Ballistic Gun Improved Assault Rifle Ballistic Cannon Gauss Cannon Launcher Proton Missile Launcher Special Weapon RU-N14's Throwing Claymores Impact Weapon Power Maul Build | -11 -10 -10 -9 -9 -9 -8 -8 -7 -7 -7 -7 -6 -6 -6 -6 -6 -6 ------- Run | Scr Mat Min Mat Min Exi Min Mat Fac Low Low Dat Pro Fac Low Low Zio Dee Slots Evolved 8 | . . . 2 . . . 2 2 . . . . 2 . . . . Power 1 | . . . . . . . . . . . . . 1 . . . . Propulsion 4 | . . . . . . . 2 1 . . . . 1 . . . . Utility 2 | . . . 2 . . . . . . . . . . . . . . Weapon 1 | . . . . . . . . 1 . . . . . . . . . Parts Attached 300 | 2 11 7 32 . 30 1 53 25 7 5 3 7 18 4 19 40 36 Power 16 | . 2 . 1 . 2 . 2 1 . . . 1 1 . 1 2 3 Engine 11 | . 2 . 1 . 1 . 1 1 . . . 1 1 . 1 2 . Core 2 | . . . . . 1 . 1 . . . . . . . . . . Reactor 3 | . . . . . . . . . . . . . . . . . 3 Propulsion 71 | 2 . 1 5 . 6 . 16 7 3 1 . 2 6 1 3 10 8 Treads 40 | 2 . 1 3 . 4 . 13 7 3 1 . 2 2 . 1 1 . Leg 13 | . . . . . . . . . . . . . . . 2 9 2 Wheel 12 | . . . 2 . 2 . 3 . . . . . 4 1 . . . Hover 6 | . . . . . . . . . . . . . . . . . 6 Flight . | . . . . . . . . . . . . . . . . . . Utility 72 | . 4 2 10 . 10 . 12 5 1 . . 4 4 . 4 7 9 Device 27 | . . 1 1 . 3 . 5 . 1 . . 3 3 . 3 4 3 Storage 7 | . 1 . 1 . 2 . . 1 . . . . . . . 2 . Processor 4 | . . . . . . . 3 1 . . . . . . . . . Hackware . | . . . . . . . . . . . . . . . . . . Protection 34 | . 3 1 8 . 5 . 4 3 . . . 1 1 . 1 1 6 Artifact . | . . . . . . . . . . . . . . . . . . Weapon 141 | . 5 4 16 . 12 1 23 12 3 4 3 . 7 3 11 21 16 Energy Gun . | . . . . . . . . . . . . . . . . . . Energy Cannon 10 | . . . . . . . . 1 . . . . 1 . 1 4 3 Ballistic Gun 68 | . 3 2 11 . 7 1 15 7 2 3 3 . 4 1 4 5 . Ballistic Cannon 4 | . . . . . . . . . . . . . . . . 3 1 Launcher 40 | . 2 2 5 . 4 . 8 3 1 1 . . 1 1 5 4 3 Special Weapon 12 | . . . . . 1 . . . . . . . . . . 2 9 Impact Weapon 7 | . . . . . . . . 1 . . . . 1 1 1 3 . Slashing Weapon . | . . . . . . . . . . . . . . . . . . Piercing Weapon . | . . . . . . . . . . . . . . . . . . Special Melee Weapon . | . . . . . . . . . . . . . . . . . . Unidentified Prototypes 19 | . . 1 . . 2 . 5 . . . . 1 1 . . 3 6 Corrupted Parts 1 | . . . . . . . . . . . . . . . 1 . . System Corruption 1 | . . . . . . . . . . . . . . . 1 . . Parts Lost 74 | . 1 . 4 . 13 . 11 8 . 2 . 1 5 . 9 6 14 Power 6 | . 1 . . . 1 . . . . . . . . . 1 2 1 Propulsion 36 | . . . . . 3 . 8 3 . 1 . 1 4 . 6 1 9 Utility 20 | . . . 4 . 7 . 2 2 . . . . . . 1 1 3 Weapon 12 | . . . . . 2 . 1 3 . 1 . . 1 . 1 2 1 Highest Loss Streak 8 | . 1 . 1 . 7 . 4 3 . 2 . 1 2 . 7 2 8 To Critical Strikes 4 | . . . . . 4 . . . . . . . . . . . . Average Slot Usage (%) 88 | . 95 100 96 100 76 100 96 94 92 92 70 88 85 100 80 83 68 Engine 8 | . 14 14 11 11 8 . 1 7 7 7 7 7 12 13 12 12 2 Core 1 | . . . . . 2 11 7 . . . . . . . . . . Treads 18 | . 28 28 14 11 11 11 22 34 38 38 38 34 24 20 7 5 2 Leg 6 | . . . . . . . . . . . . . . . 6 21 26 Wheel 4 | . . . 7 11 9 11 10 2 . . . . 6 20 6 . . Device 5 | . . . . . 1 22 2 3 3 7 7 7 6 13 13 11 4 Storage 8 | . 14 14 11 11 11 22 9 7 7 7 7 7 6 6 6 6 4 Processor 2 | . . . . . . . 14 5 3 . . . . . . . . Protection 10 | . 10 14 29 33 23 . 8 7 7 7 7 7 6 6 6 6 8 Ballistic Gun 16 | . 22 27 21 22 6 22 17 21 22 22 1 23 19 19 18 12 . Naked Turns 57 | . . . . . . . . . . . . . . . . . 57 Heaviest Build 146 | 10 30 30 102 102 131 119 121 133 128 132 130 130 140 124 128 146 125 Greatest Support 124 | 40 40 40 43 12 43 12 40 108 108 108 108 124 124 42 42 95 119 Greatest Overweight (x) 40 | . . . 9 8 10 9 10 12 1 1 1 1 4 2 40 3 2 Average Overweight (x) 3 | . . . 5 8 7 9 6 4 1 1 1 . 1 2 2 1 . Largest Inventory Capacity 25 | 8 15 15 25 25 25 25 25 25 25 25 25 25 25 25 25 25 25 Average Capacity 23 | 8 14 15 22 25 25 25 25 25 25 25 25 25 25 25 25 25 21 Most Carried 25 | 6 15 15 25 23 25 18 25 25 24 25 25 25 25 25 25 25 25 Average Carried 22 | 4 11 14 21 23 22 18 23 23 23 24 25 24 24 25 23 24 19 Final Capacity 25 | 8 15 15 25 25 25 25 25 25 25 25 25 25 25 25 25 25 5 Final Carried 25 | 2 15 15 23 23 18 18 24 25 24 25 25 24 25 25 22 25 4 Class Distribution -------------------- 35% | Scavenger-Mutant 30% | Scavenger-Tank 29% | Mutant 3% | Scavenger-Gunner Dominant Class ---------------- Mutant | -10/Materials Mutant | -10/Mines Mutant | -9/Materials Mutant | -9/Mines Mutant | -9/Exiles Mutant | -8/Mines Scavenger-Mutant | -8/Materials Scavenger-Tank | -7/Factory Scavenger-Tank | -7/Lower Caves Scavenger-Tank | -7/Lower Caves Scavenger-Mutant | -7/Data Miner Scavenger-Tank | -6/Proximity Caves Scavenger-Tank | -6/Factory Scavenger-Tank | -6/Lower Caves Scavenger-Tank | -6/Lower Caves Scavenger-Mutant | -6/Zion Scavenger-Mutant | -6/Deep Caves Resources | -11 -10 -10 -9 -9 -9 -8 -8 -7 -7 -7 -7 -6 -6 -6 -6 -6 -6 ----------- Run | Scr Mat Min Mat Min Exi Min Mat Fac Low Low Dat Pro Fac Low Low Zio Dee Matter Collected 8680 | 200 184 68 985 55 850 30 1736 797 509 185 . 403 1246 88 212 879 253 Remotely . | . . . . . . . . . . . . . . . . . . Salvage Created 10195 | . 396 81 1770 53 293 43 2684 1165 401 170 . 350 1350 129 164 709 437 Parts 566 | . 31 6 110 3 18 6 143 57 11 11 . 10 66 5 10 54 25 Haulers Intercepted 15 | . 1 . 5 . . . 6 1 . . . . 2 . . . . Recyclers Shooed 14 | . . . 4 . . . 5 1 . . . . 4 . . . . Parts Field Recycled . | . . . . . . . . . . . . . . . . . . Retrieved Matter . | . . . . . . . . . . . . . . . . . . Parts Self-Destructed 71 | . . . . . . . . . 19 30 . 13 . 3 6 . . Prevented 3 | . . . . . . . . . . . . . . . 3 . . Kills | -11 -10 -10 -9 -9 -9 -8 -8 -7 -7 -7 -7 -6 -6 -6 -6 -6 -6 ------- Run | Scr Mat Min Mat Min Exi Min Mat Fac Low Low Dat Pro Fac Low Low Zio Dee Combat Hostiles Destroyed 176 | . 12 2 34 . 6 3 40 15 9 4 . 4 17 4 8 3 15 Guns 102 | . 4 1 22 . 2 3 28 11 8 4 . 4 12 2 1 . . Cannons 5 | . . . . . . . . . . . . . 1 . . . 4 AOE 66 | . 8 1 12 . 4 . 11 4 1 . . . 3 2 7 3 10 Classes Destroyed 27 | . 5 . 6 . 2 . 4 1 1 . . . . . 1 3 4 Worker 16 | . 3 1 4 . . . 3 2 . . . . 3 . . . . Builder 14 | . . . 1 . . . 6 3 . . . . 4 . . . . Tunneler 1 | . . . 1 . . . . . . . . . . . . . . Hauler 15 | . 1 . 5 . . . 6 1 . . . . 2 . . . . Recycler 15 | . . . 5 1 . . 4 2 . . . . 3 . . . . Mechanic 1 | . . . . . . . 1 . . . . . . . . . . Turret 1 | . . . . . 1 . . . . . . . . . . . . Watcher 8 | . 1 . 3 . . . 3 . . . . . 1 . . . . Swarmer 54 | . 6 . 11 . . 3 6 3 2 2 . 3 7 4 7 . . Grunt 51 | . 6 2 11 . . . 22 3 4 1 . 1 1 . . . . Brawler 1 | . . . . . . . . . 1 . . . . . . . . Duelist 3 | . . . 1 . . . 1 1 . . . . . . . . . Protector 1 | . . . 1 . . . . . . . . . . . . . . Sentry 27 | . . . 10 . . . 6 5 2 1 . . 3 . . . . Specialist 2 | . . . . . . . 2 . . . . . . . . . . Hunter 5 | . . . . . . . 2 . . . . . 2 . 1 . . Programmer 6 | . . . . . . . . 2 . . . . 4 . . . . Heavy 2 | . . . . . . . 1 1 . . . . . . . . . Zionite 29 | . . . . . . . . . . . . . . . . 29 . Z-Technician 1 | . . . . . . . . . . . . . . . . . 1 Z-Light 8 | . . . . . . . . . . . . . . . . . 8 Packrat 4 | . . . . . . . . . . . . 3 . 1 . . . Tinkerer 2 | . . . . . . . . . . . . . . . 1 1 . Assembler 1 | . . . . . . . . . . . . . . . . . 1 Assembled 10 | . . . . . 5 . . . . . . . . . . . 5 Golem 1 | . . . . . . . . . . . . . . . . . 1 Thug 1 | . . . . . . . . . . . . . . . . 1 . Butcher 1 | . . . . . . . . . . . . . . . . 1 . Fireman 1 | . . . . . . . . . . . . . . . . 1 . Mutant 1 | . . . . . . . . . . . . . . . . 1 . Best Kill Streak 10 | . 8 3 6 1 5 3 8 4 3 1 . 2 6 4 4 10 6 Combat Bots Only 6 | . 6 2 6 . 5 3 6 3 3 1 . 2 4 4 4 3 6 Max Kills in Single Turn 5 | . 5 2 4 1 3 1 3 2 1 1 . 1 3 2 3 2 2 Gunslinging 1 | . . . 1 . . . . . . . . . 1 1 . . . Exploded 4 | . 3 1 4 . 3 . 2 2 1 . . . 2 2 3 2 2 Melee . | . . . . . . . . . . . . . . . . . . Uniques/NPCs Destroyed 2 | . . . . . 1 . . . . . . . . . . . 1 8R-AWN (-9/Exiles) Z-Imprinter (-6/Deep Caves) Combat | -11 -10 -10 -9 -9 -9 -8 -8 -7 -7 -7 -7 -6 -6 -6 -6 -6 -6 -------- Run | Scr Mat Min Mat Min Exi Min Mat Fac Low Low Dat Pro Fac Low Low Zio Dee Damage Taken 16354 | . 369 129 1290 . 1657 13 3126 1957 764 141 . 640 1255 165 999 1421 2428 Core 1966 | . 73 23 126 . 263 . 406 130 23 15 . 53 89 . 47 165 553 Absorbed by Shields . | . . . . . . . . . . . . . . . . . . Redirected to Shielding 204 | . 38 . . . . . . . . . . . . . . . 166 Core Remaining (%) 51 | 100 . 61 . . . 2 26 . . . . 68 . . . . . Volleys Fired 684 | . 28 10 102 2 71 4 165 53 15 7 . 20 71 2 20 77 37 Largest 3 | . 2 2 2 2 2 2 2 3 3 3 . 3 3 3 3 3 3 Hottest 111 | . 60 40 47 46 53 46 53 111 74 84 . 86 93 90 88 106 90 Shots Fired 1347 | . 52 17 194 5 125 8 308 138 41 22 . 59 184 4 33 112 45 Gun 1134 | . 48 14 184 5 104 8 287 131 39 22 . 59 169 3 21 40 . Cannon 67 | . . . . . . . . 1 . . . . 13 . 4 34 15 Launcher 106 | . 4 3 10 . 15 . 21 6 2 . . . 2 1 8 33 1 Special 40 | . . . . . 6 . . . . . . . . . . 5 29 Kinetic 1125 | . 33 14 184 5 104 8 287 131 39 22 . 59 169 3 21 46 . Thermal 31 | . 15 . . . 6 . . 1 . . . . . . . 7 2 Explosive 90 | . 4 3 10 . 15 . 10 2 2 . . . 2 1 5 6 30 Electromagnetic 101 | . . . . . . . 11 4 . . . . 13 . 7 53 13 Robot Hit Streak 27 | . 16 25 16 6 25 3 27 14 11 9 . 11 13 3 4 15 14 Robot Miss Streak 13 | . 2 2 6 . 2 2 4 4 3 8 . 11 3 . 6 13 2 Penetration Max 2 | . . . . . . . 1 1 . . . 1 2 . . . . Secondary Targets 14 | . 1 . 1 . . . 4 1 1 2 . 2 1 1 . . . Max Gunslinging Chain 1 | . 1 . 1 . . . 1 1 1 1 . 1 1 1 . . . Shots Hit Robots 919 | . 37 13 142 4 91 3 232 87 32 16 . 32 116 4 22 54 34 Core Hits 546 | . 24 7 81 1 41 3 110 44 33 15 . 31 58 5 16 43 34 Critical Kills 8 | . . . . . 1 . 2 2 . . . . . 1 . 2 . Critical Parts Destroyed 18 | . . . 3 . . . 5 5 . . . . 2 . 1 2 . Critical Strikes 34 | . . . 3 . 3 . 7 7 . . . . 2 1 1 8 2 Destroy 23 | . . . 3 . 2 . 7 7 . . . . 2 . . 2 . Blast 1 | . . . . . . . . . . . . . . . . 1 . Corrupt 1 | . . . . . . . . . . . . . . . . 1 . Smash 4 | . . . . . . . . . . . . . . 1 1 2 . Sever 5 | . . . . . 1 . . . . . . . . . . 2 2 Melee Attacks 36 | . . . . . . . . 6 . . . . 1 1 4 24 . Impact 36 | . . . . . . . . 6 . . . . 1 1 4 24 . Slashing . | . . . . . . . . . . . . . . . . . . Piercing . | . . . . . . . . . . . . . . . . . . Sneak Attacks 4 | . . . . . . . . . . . . . . 1 3 . . Combat Hostiles . | . . . . . . . . . . . . . . . . . . Follow-up Attacks . | . . . . . . . . . . . . . . . . . . Damage Inflicted 28698 | . 928 221 3307 65 1931 62 5695 2303 673 303 . 584 3614 396 1261 2531 4824 Guns 14022 | . 304 87 2059 65 1318 62 3758 1566 505 303 . 584 2841 40 182 348 . Cannons 1155 | . . . . . . . . . . . . . 272 . 33 618 232 Explosions 11625 | . 624 134 1248 . 604 . 1937 737 168 . . . 501 237 731 1058 3646 Melee 742 | . . . . . . . . . . . . . . 119 315 308 . Ramming 5 | . . . . . 5 . . . . . . . . . . . . Kinetic 13997 | . 224 87 2059 65 1318 62 3758 1566 505 303 . 584 2841 40 182 403 . Thermal 433 | . 80 . . . 4 . 89 . . . . . . . 66 159 35 Explosive 9963 | . 624 134 1248 . 604 . 1175 354 168 . . . 501 237 497 775 3646 Electromagnetic 2413 | . . . . . . . 673 383 . . . . 272 . 201 687 197 Impact 742 | . . . . . . . . . . . . . . 119 315 308 . Slashing 1145 | . . . . . . . . . . . . . . . . 199 946 Piercing . | . . . . . . . . . . . . . . . . . . Highest Corruption 7 | . 1 1 2 2 2 2 . 6 7 7 7 7 5 5 7 7 2 Average Corruption 3 | . 1 1 2 2 2 2 . 4 7 7 7 7 3 5 6 2 2 Corruption Purged . | . . . . . . . . . . . . . . . . . . Corruption Blocked . | . . . . . . . . . . . . . . . . . . Effects 252 | . 2 2 5 8 25 3 . 30 22 38 7 20 21 12 26 17 14 Message Errors 72 | . 1 1 2 2 6 1 . 5 10 13 1 4 10 3 5 8 . Matter Fused 49 | . . . 2 1 5 . . 8 5 8 1 5 1 . 10 2 1 Heat Flow Errors 37 | . . 1 1 1 3 1 . . 2 5 1 1 6 2 6 2 5 Energy Discharges 35 | . 1 . . . 4 1 . 6 2 3 2 4 1 4 4 1 2 Parts Rejected 1 | . . . . . . . . . . . . . . . . 1 . Data Loss (minor) 27 | . . . . 1 4 . . 5 2 3 2 5 . 3 . . 2 Data Loss (major) 8 | . . . . 1 2 . . 1 . . . . . . . 1 3 Misfires 8 | . . . . 1 1 . . 2 . 2 . . 1 . . 1 . Alerts 8 | . . . . 1 . . . 1 1 3 . . 1 . . 1 . Weapon Failures 7 | . . . . . . . . 2 . 1 . 1 1 . 1 . 1 Overload Shots . | . . . . . . . . . . . . . . . . . . Overflow Damage 500 | . 12 . 112 . . . 39 44 . . . . 43 14 110 14 112 Projectiles 21 | . . . . . . . . . . . . . . . . 3 18 Explosions 358 | . 12 . 112 . . . 39 44 . . . . 43 14 . . 94 Melee 121 | . . . . . . . . . . . . . . . 110 11 . Knockbacks 2 | . . . . . . . . . . . . . . . 1 1 . Impact 1 | . . . . . . . . . . . . . . . 1 . . Kinetic 1 | . . . . . . . . . . . . . . . . 1 . Secondary . | . . . . . . . . . . . . . . . . . . Self-Inflicted Damage 359 | . 24 . 58 . 4 . 54 . . . . . . 52 45 71 51 Shots 16 | . 2 . 2 . 1 . 3 . . . . . . 1 3 3 1 Rammed 1 | . . . . . 1 . . . . . . . . . . . . Targets Rammed 1 | . . . . . 1 . . . . . . . . . . . . Kicked . | . . . . . . . . . . . . . . . . . . Crushed . | . . . . . . . . . . . . . . . . . . Highest Temperature 479 | . 70 202 105 105 275 114 216 357 142 257 271 262 240 217 328 305 479 Average Temperature 90 | . 21 50 20 34 45 34 50 99 50 90 144 99 101 112 145 141 196 Received Heat Transfer 3179 | . 156 75 381 . . . 1098 294 213 63 . 93 162 . . 265 379 Effects 11 | . . . . . . . . . . 1 . 1 . . 2 1 6 Energy Bleed 4 | . . . . . . . . . . 1 . . . . . . 3 Interference 4 | . . . . . . . . . . . . 1 . . 2 . 1 Matter Decay 1 | . . . . . . . . . . . . . . . . . 1 Short Circuit 1 | . . . . . . . . . . . . . . . . 1 . Damage (minor) 1 | . . . . . . . . . . . . . . . . . 1 Siege Activations . | . . . . . . . . . . . . . . . . . . Robots Corrupted 3 | . . . . . . . 1 . . . . . 1 . . . 1 Combat Hostiles 3 | . . . . . . . 1 . . . . . 1 . . . 1 Parts Fried 10 | . . . . . . . 2 1 . . . . 3 . 1 2 1 Impact Corruptions 5 | . . . . . . . . . . . . . . . 4 1 . Robots Melted . | . . . . . . . . . . . . . . . . . . Combat Hostiles . | . . . . . . . . . . . . . . . . . . Parts Melted 1 | . . . . . . . . . . . . . . . . 1 . Heat Transferred 461 | . 175 . . . 36 . 150 . . . . . . . 50 50 . Parts Sabotaged . | . . . . . . . . . . . . . . . . . . Parts Stolen . | . . . . . . . . . . . . . . . . . . Parts Stripped . | . . . . . . . . . . . . . . . . . . Power Chain Reactions 8 | . . . . . . . 2 . . . . . . . 1 5 . Missiles Intercepted . | . . . . . . . . . . . . . . . . . . Alert | -11 -10 -10 -9 -9 -9 -8 -8 -7 -7 -7 -7 -6 -6 -6 -6 -6 -6 ------- Run | Scr Mat Min Mat Min Exi Min Mat Fac Low Low Dat Pro Fac Low Low Zio Dee Peak Influence 794 | . 421 186 794 314 . 98 650 529 . . . . 253 . . . . Initial 309 | . . 68 5 309 . . 37 295 . . . . 81 . . . . Average 307 | . 178 101 431 310 . 79 404 336 . . . . 153 . . . . Maximum Alert Level 3 | . 2 . 3 1 . . 2 2 . . . . 1 . . . . Low Security (%) 35 | 100 56 100 24 . . 100 8 19 . . . . 74 . . . . Level 1 28 | . 43 . 22 100 . . 20 37 . . . . 25 . . . . Level 2 32 | . . . 37 . . . 70 42 . . . . . . . . . Level 3 2 | . . . 14 . . . . . . . . . . . . . . Level 4 . | . . . . . . . . . . . . . . . . . . Level 5 . | . . . . . . . . . . . . . . . . . . High Security . | . . . . . . . . . . . . . . . . . . Max Security . | . . . . . . . . . . . . . . . . . . Squads Dispatched 27 | . 2 1 3 . . . 8 6 . . . . 7 . . . . Investigation 5 | . 1 1 1 . . . 2 . . . . . . . . . . Extermination 6 | . . . . . . . . 3 . . . . 3 . . . . Reinforcement 11 | . 1 . 1 . . . 6 . . . . . 3 . . . . Assault 2 | . . . 1 . . . . 1 . . . . . . . . . Garrison 3 | . . . . . . . . 2 . . . . 1 . . . . Intercept . | . . . . . . . . . . . . . . . . . . Searches Triggered . | . . . . . . . . . . . . . . . . . . Construction Impeded 2 | . . . . . . . 2 . . . . . . . . . . Haulers Reinforced . | . . . . . . . . . . . . . . . . . . Active Scanning Responses . | . . . . . . . . . . . . . . . . . . Cargo Convoy Interrupts . | . . . . . . . . . . . . . . . . . . Stealth | -11 -10 -10 -9 -9 -9 -8 -8 -7 -7 -7 -7 -6 -6 -6 -6 -6 -6 --------- Run | Scr Mat Min Mat Min Exi Min Mat Fac Low Low Dat Pro Fac Low Low Zio Dee Distress Signals 11 | . 2 . 4 . . . 4 . . . . . 1 . . . . Communications Jammed 14 | . . . . . . . 5 9 . . . . . . . . . Distress Signals 4 | . . . . . . . 1 3 . . . . . . . . . Times Spotted 353 | . 19 4 47 . 48 5 62 24 15 12 . 13 27 4 10 42 21 Peak Tracking Total 11 | . 7 2 6 . 11 4 6 4 8 4 . 5 5 4 4 7 5 Tactical Retreats 31 | . . . . . 6 . 1 1 1 . . 3 . . 1 16 2 Traps | -11 -10 -10 -9 -9 -9 -8 -8 -7 -7 -7 -7 -6 -6 -6 -6 -6 -6 ------- Run | Scr Mat Min Mat Min Exi Min Mat Fac Low Low Dat Pro Fac Low Low Zio Dee Traps Triggered 6 | . 2 . 2 . . . 2 . . . . . . . . . . Indirectly . | . . . . . . . . . . . . . . . . . . Trap Hack Attempts . | . . . . . . . . . . . . . . . . . . Triggered . | . . . . . . . . . . . . . . . . . . Disarmed . | . . . . . . . . . . . . . . . . . . Reprogrammed . | . . . . . . . . . . . . . . . . . . Reused . | . . . . . . . . . . . . . . . . . . Traps Extracted . | . . . . . . . . . . . . . . . . . . Installed . | . . . . . . . . . . . . . . . . . . Triggered . | . . . . . . . . . . . . . . . . . . Exploded 3 | . . . . . 3 . . . . . . . . . . . . Machines | -11 -10 -10 -9 -9 -9 -8 -8 -7 -7 -7 -7 -6 -6 -6 -6 -6 -6 ---------- Run | Scr Mat Min Mat Min Exi Min Mat Fac Low Low Dat Pro Fac Low Low Zio Dee Machines Disabled 32 | . 1 1 3 . 8 . 7 4 . . . . 4 . . 3 1 Max in Single Turn 2 | . 1 1 1 . 2 . 1 2 . . . . 1 . . 1 1 Garrison Access 1 | . . . . . . . . 1 . . . . . . . . . Machines Sabotaged . | . . . . . . . . . . . . . . . . . . Garrisons Compromised . | . . . . . . . . . . . . . . . . . . Overloaded Fab Kills . | . . . . . . . . . . . . . . . . . . Hacking | -11 -10 -10 -9 -9 -9 -8 -8 -7 -7 -7 -7 -6 -6 -6 -6 -6 -6 --------- Run | Scr Mat Min Mat Min Exi Min Mat Fac Low Low Dat Pro Fac Low Low Zio Dee Machines Accessed 37 | . 5 2 9 . 1 . 6 6 . 1 4 . 2 . 1 . . Terminals 25 | . 5 1 9 . . . 4 4 . . . . 2 . . . . Fabricators 1 | . . . . . . . . 1 . . . . . . . . . Repair Stations . | . . . . . . . . . . . . . . . . . . Recycling Units 1 | . . . . . . . 1 . . . . . . . . . . Scanalyzers . | . . . . . . . . . . . . . . . . . . Garrison Access 2 | . . . . . . . 1 1 . . . . . . . . . Total Hacks 101 | . 9 4 23 . 1 . 19 11 . 1 30 . 2 . 1 . . Successful 57 | . 5 2 9 . 1 . 5 2 . 1 30 . 1 . 1 . . Failed 42 | . 4 2 13 . . . 13 9 . . . . 1 . . . . Catastrophic 6 | . 1 . 1 . . . . 3 . . . . 1 . . . . Database Lockouts 2 | . . . 1 . . . 1 . . . . . . . . . . Manual 34 | . 4 3 16 . . . 7 3 . . . . 1 . . . . Terminals 58 | . 9 3 23 . . . 14 7 . . . . 2 . . . . Fabricators 2 | . . . . . . . . 2 . . . . . . . . . Repair Stations . | . . . . . . . . . . . . . . . . . . Recycling Units 2 | . . . . . . . 2 . . . . . . . . . . Scanalyzers . | . . . . . . . . . . . . . . . . . . Garrison Access 5 | . . . . . . . 3 2 . . . . . . . . . Terminal Hacks 56 | . 5 2 9 . 1 . 4 2 . 1 30 . 1 . 1 . . Record 12 | . . . . . 1 . . . . . 11 . . . . . . Part Schematic 10 | . . . . . . . . . . . 10 . . . . . . Robot Schematic 6 | . . . . . . . . . . . 6 . . . . . . Robot Analysis 6 | . 2 . 3 . . . 1 . . . . . . . . . . Prototype ID Bank 10 | . 3 1 2 . . . 1 . . . 3 . . . . . . Open Door 3 | . . 1 . . . . . . . 1 . . . . 1 . . Branch Access Points 2 | . . . . . . . . 1 . . . . 1 . . . . Terminal Index 1 | . . . 1 . . . . . . . . . . . . . . Unreport Threat 1 | . . . . . . . 1 . . . . . . . . . . Locate Traps 4 | . . . 2 . . . 1 1 . . . . . . . . . Hauler Manifests 1 | . . . 1 . . . . . . . . . . . . . . Fabricator Hacks . | . . . . . . . . . . . . . . . . . . Repair Station Hacks . | . . . . . . . . . . . . . . . . . . Recycling Unit Hacks 1 | . . . . . . . 1 . . . . . . . . . . Retrieve Components 1 | . . . . . . . 1 . . . . . . . . . . Scanalyzer . | . . . . . . . . . . . . . . . . . . Garrison Access Hacks . | . . . . . . . . . . . . . . . . . . Unauthorized Hacks . | . . . . . . . . . . . . . . . . . . Terminals . | . . . . . . . . . . . . . . . . . . Fabricators . | . . . . . . . . . . . . . . . . . . Repair Stations . | . . . . . . . . . . . . . . . . . . Recycling Units . | . . . . . . . . . . . . . . . . . . Scanalyzers . | . . . . . . . . . . . . . . . . . . Garrison Access . | . . . . . . . . . . . . . . . . . . Data Cores Recovered . | . . . . . . . . . . . . . . . . . . Used . | . . . . . . . . . . . . . . . . . . Hacking Detections 25 | . 4 1 8 . . . 5 6 . . . . 1 . . . . Full Trace Events 2 | . . 1 . . . . 1 . . . . . . . . . . Feedback Events . | . . . . . . . . . . . . . . . . . . Feedback Blocked . | . . . . . . . . . . . . . . . . . . Robot Schematics Acquired 6 | . . . . . . . . . . . 6 . . . . . . Robots Built . | . . . . . . . . . . . . . . . . . . Authchips . | . . . . . . . . . . . . . . . . . . Time . | . . . . . . . . . . . . . . . . . . Total Robot Build Rating . | . . . . . . . . . . . . . . . . . . Part Schematics Acquired 10 | . . . . . . . . . . . 10 . . . . . . Parts Built . | . . . . . . . . . . . . . . . . . . Authchips . | . . . . . . . . . . . . . . . . . . Time . | . . . . . . . . . . . . . . . . . . Total Part Build Rating . | . . . . . . . . . . . . . . . . . . Parts Repaired . | . . . . . . . . . . . . . . . . . . Time . | . . . . . . . . . . . . . . . . . . Parts Recycled . | . . . . . . . . . . . . . . . . . . Recycled Matter . | . . . . . . . . . . . . . . . . . . Retrieved Matter . | . . . . . . . . . . . . . . . . . . Retrieved Components 10 | . . . . . . . 10 . . . . . . . . . . Parts Scanalyzed . | . . . . . . . . . . . . . . . . . . Part Schematics Acquired . | . . . . . . . . . . . . . . . . . . Parts Damaged . | . . . . . . . . . . . . . . . . . . Bothacking | -11 -10 -10 -9 -9 -9 -8 -8 -7 -7 -7 -7 -6 -6 -6 -6 -6 -6 ------------ Run | Scr Mat Min Mat Min Exi Min Mat Fac Low Low Dat Pro Fac Low Low Zio Dee Used RIF Installer . | . . . . . . . . . . . . . . . . . . Robots Hacked . | . . . . . . . . . . . . . . . . . . Non-combat . | . . . . . . . . . . . . . . . . . . Combat . | . . . . . . . . . . . . . . . . . . Robot Hacks Applied . | . . . . . . . . . . . . . . . . . . Relay Couplers Released 2 | . . . . . . . . 2 . . . . . . . . . Machine Destruction 2 | . . . . . . . . 2 . . . . . . . . . Fabnet Peak Effective % . | . . . . . . . . . . . . . . . . . . Robots Rewired 3 | . . . . . . . . 1 2 . . . . . . . . Allies Hacked . | . . . . . . . . . . . . . . . . . . Hacks Repelled . | . . . . . . . . . . . . . . . . . . Allies | -11 -10 -10 -9 -9 -9 -8 -8 -7 -7 -7 -7 -6 -6 -6 -6 -6 -6 -------- Run | Scr Mat Min Mat Min Exi Min Mat Fac Low Low Dat Pro Fac Low Low Zio Dee Total Allies 8 | . . . . . . . . 1 3 . . 1 . . . 3 . Largest Group 3 | . . . . . . . . 1 2 2 . 1 . . . 3 . Highest-Rated Group 96 | . . . . . . . . 16 49 48 . 96 . . . 84 . Highest-Rated Ally 96 | . . . . . . . . 16 49 32 . 96 . . . 31 . Total Orders 9 | . . . . . . 9 . . . . . . . . . . . STAY 2 | . . . . . . 2 . . . . . . . . . . . FOLLOW 2 | . . . . . . 2 . . . . . . . . . . . EXPLORE 4 | . . . . . . 4 . . . . . . . . . . . RETURN 1 | . . . . . . 1 . . . . . . . . . . . Ally Attacks 60 | . . . . . . 6 . 3 13 20 . 18 . . . . . Total Damage 1134 | . . . . . . 14 . 29 52 390 . 649 . . . . . Kills 17 | . . . . . . 1 . . 1 8 . 7 . . . . . Allies Corrupted . | . . . . . . . . . . . . . . . . . . Allies Melted . | . . . . . . . . . . . . . . . . . . Intel | -11 -10 -10 -9 -9 -9 -8 -8 -7 -7 -7 -7 -6 -6 -6 -6 -6 -6 ------- Run | Scr Mat Min Mat Min Exi Min Mat Fac Low Low Dat Pro Fac Low Low Zio Dee Robot Analysis Total 6 | . 2 . 3 . . . 1 . . . . . . . . . . Derelict Logs Recovered 8 | . . 1 . . . . . . 2 2 . . . . 2 1 . Drone Launches 25 | . . . . . 6 6 . . 13 . . . . . . . . Drone Recoveries 25 | . . . . . . 12 . . 13 . . . . . . . . Exploration | -11 -10 -10 -9 -9 -9 -8 -8 -7 -7 -7 -7 -6 -6 -6 -6 -6 -6 ------------- Run | Scr Mat Min Mat Min Exi Min Mat Fac Low Low Dat Pro Fac Low Low Zio Dee Turns Passed 21735 | 5 933 504 1927 378 1710 330 2394 2018 768 1212 255 642 1508 342 767 4946 1096 Spaces Moved 8959 | 1 506 290 751 178 705 128 918 708 261 484 103 234 616 267 292 1782 735 Core 116 | . . . . . . . . . . . . . . . 4 . 112 Treads 2977 | 1 506 290 227 . 9 . 17 445 261 484 103 234 400 . . . . Legs 2253 | . . . . . . . . . . . . . . . 115 1782 356 Wheels 3346 | . . . 524 178 696 128 901 263 . . . . 216 267 173 . . Hover 267 | . . . . . . . . . . . . . . . . . 267 Flight . | . . . . . . . . . . . . . . . . . . Fastest Speed 40 | 160 160 160 160 210 195 225 150 245 244 244 244 162 123 123 123 190 40 Average Speed 206 | 160 160 160 200 210 202 225 193 245 244 244 244 236 197 123 231 252 109 Slowest Speed 2050 | 160 160 160 320 210 320 225 325 260 244 245 244 244 242 123 2050 330 295 Overloaded Moves . | . . . . . . . . . . . . . . . . . . Propulsion Burnouts . | . . . . . . . . . . . . . . . . . . Robots Hopped . | . . . . . . . . . . . . . . . . . . Cave-ins Triggered . | . . . . . . . . . . . . . . . . . . Exploration Rate (%) 53 | 2 91 60 91 49 58 61 77 22 36 65 71 37 22 45 43 81 57 Regions Visited 17 Branch Regions 12 Pre-discovered Areas 3 | . . . . . 1 . . . . . 1 . . . 1 . . Known Exits Taken 3 | . . . . . . . . 1 1 . . . 1 . . . . Unknown Exits Taken 14 | 1 1 1 1 1 1 1 1 . . 1 1 1 . 1 1 1 . Scrap Searched 10 | . . 1 . 2 . . . . . 2 . 1 . 2 1 1 . Spaces Dug 21 | . . . . . . . . 6 . . . . 1 . 11 3 . Terrain Destroyed 489 | . 38 21 52 . 31 . 76 32 27 . . 9 18 18 65 63 39 Melee 11 | . . . . . . . . 6 . . . . 1 . 1 3 . Projectile 32 | . . . . . 4 . 8 2 . . . 9 4 1 . 1 3 AOE 446 | . 38 21 52 . 27 . 68 24 27 . . . 13 17 64 59 36 Terrain Rammed . | . . . . . . . . . . . . . . . . . . Walls Destroyed . | . . . . . . . . . . . . . . . . . . Machines Disabled . | . . . . . . . . . . . . . . . . . . Actions | -11 -10 -10 -9 -9 -9 -8 -8 -7 -7 -7 -7 -6 -6 -6 -6 -6 -6 --------- Run | Scr Mat Min Mat Min Exi Min Mat Fac Low Low Dat Pro Fac Low Low Zio Dee Total 10896 | 6 585 314 990 179 877 165 1240 872 360 500 108 278 765 274 338 2058 987 Wait 547 | . 9 3 60 . 35 33 53 36 14 1 . 7 36 . 4 104 152 Move 8942 | . 505 289 750 177 704 127 917 707 260 483 102 233 615 266 291 1781 735 Hop . | . . . . . . . . . . . . . . . . . . Pick Up 151 | . 22 1 25 . 20 . 26 15 2 3 . 5 11 . . 14 7 Fast Attach 64 | . 2 2 1 . 1 . 15 5 . . 3 1 9 . 3 11 11 Attach 67 | 2 2 . 5 . 16 . 7 7 2 2 . 1 2 . 3 3 15 Detach 14 | . . 1 . . 3 . 4 . . . . . . . . . 6 Swap 169 | . 7 5 26 . 13 1 31 13 5 3 . 5 7 4 13 26 10 Drop 147 | 4 10 3 21 . 13 . 22 16 2 1 3 6 13 1 . 18 14 Fire 684 | . 28 10 102 2 71 4 165 53 15 7 . 20 71 2 20 77 37 Melee 36 | . . . . . . . . 6 . . . . 1 1 4 24 . Ram . | . . . . . . . . . . . . . . . . . . Kick . | . . . . . . . . . . . . . . . . . . Crush 1 | . . . . . 1 . . . . . . . . . . . . Escape Stasis . | . . . . . . . . . . . . . . . . . . Rewire 74 | . . . . . . . . 14 60 . . . . . . . . Trap . | . . . . . . . . . . . . . . . . . . Miscellaneous . | . . . . . . . . . . . . . . . . . . Route ------- -11/Scrapyard -10/Materials (discovered 4 exits: *Mat x3 / *Min) -10/Mines (discovered 2 exits: *Mat x2) -9/Materials (discovered 5 exits: *Mat x3 / [*Min x2]) -9/Mines (discovered 2 exits: *Mat / *Exi) -9/Exiles -8/Mines (discovered 2 exits: *Mat x2) -8/Materials (discovered 3 exits: *Fac x2 / [*Sto]) -7/Factory (discovered 2 exits: *Low x2) -7/Lower Caves -7/Lower Caves -7/Data Miner -6/Proximity Caves -6/Factory (discovered 4 exits: Fac x2 / *Low x2) -6/Lower Caves -6/Lower Caves (discovered 2 exits: *Fac / *Zio) -6/Zion (discovered 2 exits: [*Dee] / [*Pro]) -6/Deep Caves History --------- Turn | Location | Event 6 | -11/Scrapyard | Discovered new exit (range 0) 6 | -11/Scrapyard | Entered Materials 211 | -10/Materials | Discovered new exit (range 10) 311 | -10/Materials | Build established: Mutant 522 | -10/Materials | Discovered new exit (range 6) 714 | -10/Materials | Discovered new exit (range 15) 786 | -10/Materials | Discovered new exit (range 8) 939 | -10/Materials | Entered Mines 970 | -10/Mines | A weapon hastily lodged in a ceiling crevice suddenly fell to the ground 1108 | -10/Mines | Found the Drone Emporium 1116 | -10/Mines | Found Prototype Device 1116 | -10/Mines | Identified Splice Drone Bay 1157 | -10/Mines | Learned Materials emergency access door positions 1423 | -10/Mines | Discovered new exit (range 10) 1428 | -10/Mines | Discovered new exit (range 4) 1443 | -10/Mines | Entered Materials 1443 | -9/Materials | Evolved 2 slots: Utility x2 2335 | -9/Materials | Discovered new exit (range 16) 2356 | -9/Materials | Central database locked down 2489 | -9/Materials | Discovered new exit (range 11) 2865 | -9/Materials | Discovered new exit (range 12) 3043 | -9/Materials | First assault squad dispatched 3154 | -9/Materials | Discovered new exit (range 13) 3339 | -9/Materials | Discovered new exit (range 16) 3370 | -9/Materials | Entered Mines 3386 | -9/Mines | Met a Derelict bent on vengeance 3654 | -9/Mines | Discovered new exit (range 10) 3740 | -9/Mines | Deemed a non-threat by the Exiles lab entrance 3740 | -9/Mines | Discovered new exit (range 5) 3748 | -9/Mines | Entered Exiles 3798 | -9/Exiles | Met 8R-AWN 3831 | -9/Exiles | Met EX-HEX 3907 | -9/Exiles | Met EX-DEC 3917 | -9/Exiles | Learned location of Zion (-6) 4794 | -9/Exiles | Attacked by the Exiles 4894 | -9/Exiles | Core integrity fell below 50% 4966 | -9/Exiles | Core integrity fell below 20% 4972 | -9/Exiles | Lost 7 parts (1n5u1w) 5016 | -9/Exiles | Destroyed 8R-AWN 5022 | -9/Exiles | Found Prototype Ballistic Gun 5025 | -9/Exiles | Found Prototype Device 5031 | -9/Exiles | Lost 3 parts (1p1n1w) 5033 | -9/Exiles | Found Prototype Processor 5039 | -9/Exiles | Found Prototype Protection 5062 | -9/Exiles | Identified 8R-AWN's Armor/EX 5255 | -9/Exiles | Identified 8R-AWN's Boregun 5382 | -9/Exiles | Discovered new exit (range 12) 5458 | -9/Exiles | Entered Mines 5458 | -8/Mines | Accompanied by 6 allies 5711 | -8/Mines | Discovered new exit (range 38) 5729 | -8/Mines | Discovered new exit (range 24) 5788 | -8/Mines | Entered Materials 5788 | -8/Materials | Evolved 2 slots: Propulsion x2 5802 | -8/Materials | Identified AS-neutralizer No. 17b 6118 | -8/Materials | Build established: Scavenger-Mutant 6184 | -8/Materials | Central database locked down 6446 | -8/Materials | Discovered new exit (range 20) 6890 | -8/Materials | Build established: Mutant 7162 | -8/Materials | Lost 4 parts (3n1u) 7225 | -8/Materials | Discovered new exit (range 14) 7441 | -8/Materials | Build established: Scavenger-Mutant 7441 | -8/Materials | Core integrity fell below 50% 7960 | -8/Materials | Discovered new exit (range 4) 7967 | -8/Materials | Identified Exp. Targeting Computer 8182 | -8/Materials | Entered Factory 8182 | -7/Factory | Evolved 2 slots: Propulsion x1, Weapon x1 8478 | -7/Factory | Build established: Scavenger-Gunner 9078 | -7/Factory | Lost 3 parts (1n2w) 9500 | -7/Factory | Identified exit to Lower Caves 9534 | -7/Factory | Build established: Scavenger-Tank 10200 | -7/Factory | Entered Lower Caves 10370 | -7/Lower Caves | Attracted the attention of an 0b10 checkpoint 10430 | -7/Lower Caves | Identified exit to Lower Caves 10578 | -7/Lower Caves | Attracted the attention of an 0b10 outpost 10878 | -7/Lower Caves | Learned Factory emergency access door positions 10968 | -7/Lower Caves | Entered another Lower Caves area 10968 | -7/Lower Caves | Accompanied by 2 allies 11087 | -7/Lower Caves | Encountered a Warlord checkpoint 11312 | -7/Lower Caves | Learned location of 2 exits from Factory 11363 | -7/Lower Caves | Attracted the attention of an 0b10 checkpoint 12061 | -7/Lower Caves | Learned Factory security intel 12117 | -7/Lower Caves | Discovered new exit (range 10) 12180 | -7/Lower Caves | Entered Data Miner 12182 | -7/Data Miner | Discovered new exit (range 6) 12228 | -7/Data Miner | Met Data Miner 12282 | -7/Data Miner | Learned location of Section 7 (-3) 12282 | -7/Data Miner | Acquired the access code to Warlord's prototype stash 12326 | -7/Data Miner | Received God Mode back door access code from Data Miner 12435 | -7/Data Miner | Entered Proximity Caves 12618 | -6/Proximity Caves | Escorted by Enhanced Grunt 12743 | -6/Proximity Caves | Attracted the attention of an 0b10 checkpoint 12995 | -6/Proximity Caves | Found Prototype Device 12996 | -6/Proximity Caves | Identified Exp. Thermal Shield 13043 | -6/Proximity Caves | Discovered new exit (range 7) 13077 | -6/Proximity Caves | Entered Factory 13077 | -6/Factory | Evolved 2 slots: Power x1, Propulsion x1 13078 | -6/Factory | Identified exit to Factory 13687 | -6/Factory | Garrison activated, responded to threat 14474 | -6/Factory | Identified exit to Lower Caves 14585 | -6/Factory | Entered Lower Caves 14671 | -6/Lower Caves | Encountered a Warlord checkpoint 14911 | -6/Lower Caves | Discovered new exit (range 12) 14927 | -6/Lower Caves | Entered another Lower Caves area 14962 | -6/Lower Caves | Discovered exit to Factory (range 3) 15233 | -6/Lower Caves | Lost 7 parts (1p5n1w) 15377 | -6/Lower Caves | Learned 4 Factory zone layouts 15677 | -6/Lower Caves | Discovered new exit (range 5) 15694 | -6/Lower Caves | Entered Zion 15782 | -6/Zion | System corruption cleaned by Quarantine Array 16018 | -6/Zion | Discovered new exit (range 15) 16763 | -6/Zion | Learned Factory stockpile data 16964 | -6/Zion | Found Prototype Special Weapon 16967 | -6/Zion | Found Prototype Special Weapon 16973 | -6/Zion | Found Prototype Special Weapon 16980 | -6/Zion | Found Prototype Special Weapon 17238 | -6/Zion | Found Rocket Array 17468 | -6/Zion | Build established: Scavenger-Mutant 17777 | -6/Zion | Given the Hacking Drone Bay 18080 | -6/Zion | Discovered new exit (range 5) 18082 | -6/Zion | Saw the warning signs outside the Deep Caves entrance 18779 | -6/Zion | Gained Derelict followers 18905 | -6/Zion | Found CR-A16's Pointy Stick 19327 | -6/Zion | Identified RU-N14's Throwing Claymores (x4) 19458 | -6/Zion | Attacked by Zionites 19728 | -6/Zion | Found Corrupted RU-N14's Throwing Claymores 20640 | -6/Zion | Entered Deep Caves 20864 | -6/Deep Caves | Attacked by Z-Imprinter 20866 | -6/Deep Caves | Destroyed Z-Imprinter 20976 | -6/Deep Caves | Found Prototype Protection 20997 | -6/Deep Caves | Z-Facility disabled 21017 | -6/Deep Caves | Found Prototype Protection 21108 | -6/Deep Caves | Found Prototype Protection 21118 | -6/Deep Caves | Identified Zio. Weapon Casing (x2) 21120 | -6/Deep Caves | Identified Zio. Heavy Carapace 21308 | -6/Deep Caves | Spotted as-09324 21345 | -6/Deep Caves | Core integrity fell below 50% 21358 | -6/Deep Caves | Destroyed as-09324 21385 | -6/Deep Caves | Lost 3 parts (2n1u) 21450 | -6/Deep Caves | Triggered Deep Caves wall 21458 | -6/Deep Caves | Spotted AS-27606 21462 | -6/Deep Caves | Spotted AS-20914 21511 | -6/Deep Caves | Exposed GOLEM chamber 21525 | -6/Deep Caves | Destroyed AS-20914 21539 | -6/Deep Caves | Core integrity fell below 20% 21569 | -6/Deep Caves | Lost 8 parts (1p4n2u1w) 21620 | -6/Deep Caves | Found Zio. Weapon Casing 21736 | -6/Deep Caves | Spotted as-09916 21736 | -6/Deep Caves | Destroyed by as-09916 with Assembled Focal Cannon Last Messages --------------- 21531_ Mak. Leg destroyed. 21531_ Lyr. Medium Armor Plating destroyed. 21535_ Zio. Composite Leg I destroyed. 21535_ Mak. Leg destroyed. 21538_ Zio. Light DM Reactor destroyed. 21538_ Proton Cannon destroyed. 21538_ Dropped Huge Storage Unit. 21539_ Dropped AS-neutralizer No. 17b. 21539_ Dropped Zio. Light DM Reactor. 21540_ Dropped Rocket Array. 21540_ Dropped Triangulator. 21541_ as-04304 destroyed. 21597_ Acquired Prototype Hover Unit. 21597_ Identified Zio. Glidesys I. 21599_ Acquired Zio. Glidesys I. 21620_ Acquired Zio. Weapon Casing. 21636_ Acquired Zio. Light DM Reactor. 21672_ Acquired Zio. Glidesys I. 21695_ System corrupted: Heat flow error (+183). 21736_ Zio. Glidesys I destroyed. Map ----- +----------------------------------------------------+ | ???" [ ?????????????????????????????????????? | | ??"" ??????????????????????????????????? | | ??" #????????????????????????????????? | | ??! #????????????????????????????????? | | ### ##? ?????????????????????????????? | | " # ?????????????????????????????? | | #????????????????????????????? | | ????????????????????????????? | | / ???????????????????????????? | | % ! ] #?????# ??????????????????? | | =] #???## ?????????????????? | | #?# ?????????????????? | | / ] #?# #????????????????? | | " / = #?# ?????????????????? | | ??# ! / = #?# ?????????????????? | | ??""!||! G #?# ??????????????????? | | ???"]/! #?# ??????????????????? | | ???"!]]] #?? #??????????????????? | | ???"!!/! == ##?? #??????????????????? | | ??""!!* ! #??? G##?????????????????? | | ??# ! = l #???# #?????????????????? | | ??" l #??## #?????????????????? | | ??" = #### #?????????????????? | | ??" ########??????????? | | ??""" ####???????? | | ??" @ ##??????? | | ??"" ### #### ######## | | ??" b #?### #?## | | ??"" ##???# ### | | ??" " # #????# ##### | | ??" ###" ## ## ##????# ##???? | | ??""" ###?## #" "###?????########## ##????? | | ???" ????#### "#????????????????########?????? | | ???######???????####?????????????????????????????? | | | | | | | | | | | | | | | | | | | | | | | | | | | | | | | | | +----------------------------------------------------+ Best States ------------- Heat Dissipation 63 Energy Generation 49 Energy Capacity 500 Matter Stores 359 Matter Capacity 550 Sight Range 20 Terrain Scan Range 20 Terrain Scan Density 10 Jamming Range 12 Additional Mass Support 12 Armor Coverage 1200 Resistance: EX 90 Weapon Shielding 100 Weapon Cycling 25 Evasion (%) 57 Targeting Accuracy 12 Recoil Reduction 5 Salvage Targeting 2 Item Schematics ----------------- Combat Drone Bay | -7/Data Miner | Free Lgt. Regenerative Plating | -7/Data Miner | Free Cld. Cesium-ion Thruster | -7/Data Miner | Free Exp. Targeting Computer | -7/Data Miner | Free Force Rifle | -7/Data Miner | Free Field Propulsion Drive | -7/Data Miner | Free Imp. Arc Projector | -7/Data Miner | Free Imp. Component Analysis Suite | -7/Data Miner | Free Angular Momentum Engine | -7/Data Miner | Free Imp. Cloaking Device | -7/Data Miner | Free Robot Schematics ------------------ R-10 Processor | -7/Data Miner | Free L-41 Fighter | -7/Data Miner | Free G-47 Trooper | -7/Data Miner | Free Y-64 Sentinel | -7/Data Miner | Free Y-54 Guardian | -7/Data Miner | Free D-63 Destroyer | -7/Data Miner | Free Fabricated ------------ Nothing Alien Tech Used ----------------- None Achievements -------------- None Challenges ------------ None Game ------ Seed NullProtonBlaster Manual? 0 Play Time 02:03:12 Cumulative 632.1 hours Start 2022.05.11 @ 19:19:54 End 2022.05.11 @ 21:31:44 Sessions 1 Manual Loads 0 Difficulty Rogue Special Mode None Game No. 587 Rogue 587 Adventurer 0 Explorer 0 Win Type - Total 23 Types 10/4/5/1/1/0/1/1/0 Lore% 91 Gallery% 95 Achievement% 77 Wizard Run 0 Options --------- ASCII 0 Keyboard 0 Movement Mouse Keybinds 1 Fullscreen 2 Font 24/Smallcaps Map View 76x50 Tactical HUD 1 Map Filters NONE Filters NONE Steam 1 RUN: 72fb07d8-c379-41f7-aae7-d76896246fd3